[Event "*** Titled Tuesday Blitz"]
[Site "Chess.com"]
[Date "2018.05.01"]
[Round "3"]
[White "Abrito99"]
[Black "HarutyunianTigranK"]
[Result "0-1"]
[WhiteElo "2509"]
[BlackElo "2729"]
[TimeControl "180+2"]
[EndTime "13:39:04 PDT"]
[Termination "HarutyunianTigranK won by resignation"]

1. e4 {[%clk 0:02:57.2]} 1... e5 {[%clk 0:03:00.8]} 2. Nf3 {[%clk 0:02:58.4]}
2... Nc6 {[%clk 0:03:02.1]} 3. Bc4 {[%clk 0:03:00]} 3... Bc5 {[%clk 0:03:02.3]}
4. c3 {[%clk 0:03:01.2]} 4... Nf6 {[%clk 0:03:03.5]} 5. d3 {[%clk 0:03:02.7]}
5... d6 {[%clk 0:03:02.8]} 6. O-O {[%clk 0:03:03.7]} 6... O-O {[%clk 0:03:02.7]}
7. Bb3 {[%clk 0:03:00.8]} 7... h6 {[%clk 0:03:03.1]} 8. h3 {[%clk 0:03:02.2]}
8... a6 {[%clk 0:03:03.3]} 9. Re1 {[%clk 0:03:03.5]} 9... Be6 {[%clk 0:03:03.2]}
10. Bc2 {[%clk 0:03:04.7]} 10... Ba7 {[%clk 0:02:59.8]} 11. Nbd2 {[%clk
0:03:05.1]} 11... Re8 {[%clk 0:02:52.1]} 12. Nf1 {[%clk 0:03:05.6]} 12... d5
{[%clk 0:02:52.8]} 13. Qe2 {[%clk 0:03:05]} 13... dxe4 {[%clk 0:02:43.7]} 14.
dxe4 {[%clk 0:03:05.3]} 14... Kh7 {[%clk 0:02:28.5]} 15. Ng3 {[%clk 0:03:03.8]}
15... g6 {[%clk 0:02:29.4]} 16. Be3 {[%clk 0:02:27.6]} 16... Bxe3 {[%clk
0:02:22.3]} 17. Qxe3 {[%clk 0:02:29.5]} 17... Qe7 {[%clk 0:02:22.6]} 18. Bb3
{[%clk 0:02:14]} 18... Nd7 {[%clk 0:02:19.1]} 19. Bd5 {[%clk 0:02:08.4]} 19...
Na5 {[%clk 0:02:09.9]} 20. Rad1 {[%clk 0:01:22.4]} 20... Rad8 {[%clk 0:02:07.2]}
21. Qe2 {[%clk 0:01:22.8]} 21... c6 {[%clk 0:02:04.5]} 22. Bxe6 {[%clk 0:01:22]}
22... Qxe6 {[%clk 0:02:06.4]} 23. b3 {[%clk 0:01:23.3]} 23... b5 {[%clk
0:02:05.5]} 24. Rd3 {[%clk 0:01:22.3]} 24... Nb7 {[%clk 0:02:03]} 25. Red1
{[%clk 0:01:23.1]} 25... Ndc5 {[%clk 0:01:56.3]} 26. Rxd8 {[%clk 0:01:23.5]}
26... Rxd8 {[%clk 0:01:57.8]} 27. Rxd8 {[%clk 0:01:24.1]} 27... Nxd8 {[%clk
0:01:59.7]} 28. Qd2 {[%clk 0:01:17.7]} 28... Qe7 {[%clk 0:01:53.2]} 29. h4
{[%clk 0:01:11.2]} 29... Nd7 {[%clk 0:01:49.3]} 30. h5 {[%clk 0:01:12]} 30...
Ne6 {[%clk 0:01:50.2]} 31. hxg6+ {[%clk 0:01:09.1]} 31... fxg6 {[%clk
0:01:52.1]} 32. Ne2 {[%clk 0:01:04.9]} 32... Nec5 {[%clk 0:01:38]} 33. Qe3
{[%clk 0:01:05.3]} 33... Qd6 {[%clk 0:01:33.4]} 34. Kh2 {[%clk 0:00:54.4]} 34...
Nf6 {[%clk 0:01:33.5]} 35. Kh1 {[%clk 0:00:38.7]} 35... Ncxe4 {[%clk 0:01:32.3]}
36. Qa7+ {[%clk 0:00:37.5]} 36... Kh8 {[%clk 0:01:28]} 37. Qa8+ {[%clk
0:00:38.8]} 37... Ng8 {[%clk 0:01:29]} 38. Qe8 {[%clk 0:00:29.5]} 38... Nxf2+
{[%clk 0:01:28.7]} 39. Kg1 {[%clk 0:00:28]} 39... Ng4 {[%clk 0:01:26.1]} 40. Kh1
{[%clk 0:00:13.1]} 40... e4 {[%clk 0:01:21.7]} 41. Nf4 {[%clk 0:00:04.5]} 41...
Qxf4 {[%clk 0:01:15.9]} 0-1

[Event "*** Titled Tuesday Blitz"]
[Site "Chess.com"]
[Date "2018.05.01"]
[Round "3"]
[White "joejan"]
[Black "Caisachess"]
[Result "1/2-1/2"]
[WhiteElo "2150"]
[BlackElo "2169"]
[TimeControl "180+2"]
[EndTime "13:39:05 PDT"]
[Termination "Game drawn by repetition"]

1. e4 {[%clk 0:03:01.9]} 1... e5 {[%clk 0:03:00.2]} 2. Nf3 {[%clk 0:03:01.9]}
2... Nc6 {[%clk 0:03:00.7]} 3. Bb5 {[%clk 0:03:03.4]} 3... f5 {[%clk 0:03:01.2]}
4. d3 {[%clk 0:03:03.2]} 4... fxe4 {[%clk 0:03:01.7]} 5. dxe4 {[%clk 0:03:03.6]}
5... Nf6 {[%clk 0:03:03.2]} 6. Qd3 {[%clk 0:03:02.5]} 6... Bb4+ {[%clk
0:03:02.8]} 7. c3 {[%clk 0:03:01.8]} 7... Bc5 {[%clk 0:03:04]} 8. b4 {[%clk
0:03:01.6]} 8... Bb6 {[%clk 0:03:03.8]} 9. a4 {[%clk 0:03:00.4]} 9... a6 {[%clk
0:03:02.8]} 10. Bc4 {[%clk 0:03:00.7]} 10... d6 {[%clk 0:02:58]} 11. O-O {[%clk
0:02:58]} 11... Qe7 {[%clk 0:02:56.7]} 12. Na3 {[%clk 0:02:55.7]} 12... Be6
{[%clk 0:02:51.7]} 13. Bxe6 {[%clk 0:02:46.4]} 13... Qxe6 {[%clk 0:02:47.6]} 14.
Nc4 {[%clk 0:02:47.9]} 14... Ba7 {[%clk 0:02:43.1]} 15. b5 {[%clk 0:02:44.7]}
15... axb5 {[%clk 0:02:30.1]} 16. axb5 {[%clk 0:02:44.9]} 16... Bxf2+ {[%clk
0:02:31.3]} 17. Kxf2 {[%clk 0:02:44]} 17... Rxa1 {[%clk 0:02:25.4]} 18. bxc6
{[%clk 0:02:44.9]} 18... bxc6 {[%clk 0:02:24.7]} 19. Bg5 {[%clk 0:02:41.2]}
19... Rxf1+ {[%clk 0:02:18.4]} 20. Kxf1 {[%clk 0:02:42]} 20... O-O {[%clk
0:02:17.7]} 21. Bxf6 {[%clk 0:02:40.9]} 21... Rxf6 {[%clk 0:02:18.2]} 22. Ne3
{[%clk 0:02:39.6]} 22... Rf8 {[%clk 0:02:04]} 23. Qc4 {[%clk 0:02:38.8]} 23...
Qxc4+ {[%clk 0:02:01.3]} 24. Nxc4 {[%clk 0:02:39.6]} 24... Rf4 {[%clk
0:02:02.7]} 25. Nd2 {[%clk 0:02:39.4]} 25... Rf8 {[%clk 0:01:58.3]} 26. Ke2
{[%clk 0:02:39]} 26... Rb8 {[%clk 0:01:58.3]} 27. Kd3 {[%clk 0:02:36.7]} 27...
h6 {[%clk 0:01:59.3]} 28. Ne1 {[%clk 0:02:31.7]} 28... Kf7 {[%clk 0:01:59.8]}
29. Nc2 {[%clk 0:02:32.6]} 29... Ke6 {[%clk 0:01:56.7]} 30. Nb4 {[%clk
0:02:30.5]} 30... c5 {[%clk 0:01:48.4]} 31. Nd5 {[%clk 0:02:29.4]} 31... c6
{[%clk 0:01:46]} 32. Ne3 {[%clk 0:02:30.2]} 32... g6 {[%clk 0:01:43.4]} 33. Nf3
{[%clk 0:02:19]} 33... d5 {[%clk 0:01:41.8]} 34. Ng4 {[%clk 0:02:13.5]} 34...
c4+ {[%clk 0:01:42.3]} 35. Ke3 {[%clk 0:02:12.5]} 35... Rb3 {[%clk 0:01:41.9]}
36. Ngxe5 {[%clk 0:02:05.4]} 36... Rxc3+ {[%clk 0:01:42.5]} 37. Kd4 {[%clk
0:02:06.5]} 37... Rc2 {[%clk 0:01:33.9]} 38. Nxg6 {[%clk 0:02:07.4]} 38... Kf6
{[%clk 0:01:24.4]} 39. Nf4 {[%clk 0:02:07.5]} 39... dxe4 {[%clk 0:01:21.6]} 40.
Kxe4 {[%clk 0:02:08.1]} 40... Rf2 {[%clk 0:01:14.7]} 41. Ke3 {[%clk 0:02:06.6]}
41... Ra2 {[%clk 0:01:12.8]} 42. Kd4 {[%clk 0:02:01.3]} 42... Kf5 {[%clk
0:01:11.6]} 43. g3 {[%clk 0:02:01.7]} 43... Rf2 {[%clk 0:01:08.1]} 44. Nh4+
{[%clk 0:01:54.7]} 44... Kg4 {[%clk 0:01:06.7]} 45. Nhg2 {[%clk 0:01:26.3]}
45... Kf3 {[%clk 0:01:01.4]} 46. Nh4+ {[%clk 0:01:24.4]} 46... Kg4 {[%clk
0:01:01.7]} 47. Nhg2 {[%clk 0:01:25.5]} 47... Kf3 {[%clk 0:01:02.6]} 48. Nh4+
{[%clk 0:01:18.8]} 48... Kg4 {[%clk 0:01:02.6]} 49. Nhg2 {[%clk 0:01:16.7]}
49... Kf3 {[%clk 0:01:02.7]} 1/2-1/2

[Event "*** Titled Tuesday Blitz"]
[Site "Chess.com"]
[Date "2018.05.01"]
[Round "3"]
[White "TST2014"]
[Black "DenksportAcademie"]
[Result "1-0"]
[WhiteElo "2404"]
[BlackElo "2232"]
[TimeControl "180+2"]
[EndTime "13:39:07 PDT"]
[Termination "TST2014 won by checkmate"]

1. d4 {[%clk 0:03:01.9]} 1... g6 {[%clk 0:02:59.9]} 2. e4 {[%clk 0:03:01.9]}
2... Bg7 {[%clk 0:03:00.4]} 3. Nf3 {[%clk 0:03:02]} 3... c5 {[%clk 0:03:00.7]}
4. d5 {[%clk 0:03:00.4]} 4... d6 {[%clk 0:03:01]} 5. Bb5+ {[%clk 0:02:55.8]}
5... Bd7 {[%clk 0:02:53.4]} 6. a4 {[%clk 0:02:55.5]} 6... Qa5+ {[%clk
0:02:50.3]} 7. Bd2 {[%clk 0:02:52.3]} 7... Qb6 {[%clk 0:02:48.7]} 8. Nc3 {[%clk
0:02:51.8]} 8... a6 {[%clk 0:02:43.1]} 9. a5 {[%clk 0:02:52.3]} 9... Qc7 {[%clk
0:02:39.4]} 10. Be2 {[%clk 0:02:45.8]} 10... b5 {[%clk 0:02:39.9]} 11. axb6
{[%clk 0:02:43.7]} 11... Qxb6 {[%clk 0:02:40.8]} 12. Qc1 {[%clk 0:02:39.7]}
12... Nf6 {[%clk 0:02:38.5]} 13. h3 {[%clk 0:02:40]} 13... O-O {[%clk
0:02:38.4]} 14. O-O {[%clk 0:02:40.2]} 14... Qb7 {[%clk 0:02:36.1]} 15. Ra3
{[%clk 0:02:34.9]} 15... Bb5 {[%clk 0:02:30.6]} 16. Rb3 {[%clk 0:02:33.6]} 16...
Qd7 {[%clk 0:02:29]} 17. Nxb5 {[%clk 0:02:33.1]} 17... axb5 {[%clk 0:02:26.5]}
18. Bxb5 {[%clk 0:02:34.6]} 18... Qc7 {[%clk 0:02:26.6]} 19. Re1 {[%clk
0:02:30.1]} 19... Nbd7 {[%clk 0:02:24.2]} 20. Bc3 {[%clk 0:02:23.6]} 20... Rfb8
{[%clk 0:02:21.6]} 21. Qd2 {[%clk 0:02:10.8]} 21... Ra2 {[%clk 0:01:28.3]} 22.
Bc4 {[%clk 0:02:02.1]} 22... Rxb3 {[%clk 0:01:27.6]} 23. Bxb3 {[%clk 0:02:03.5]}
23... Ra8 {[%clk 0:01:25.2]} 24. e5 {[%clk 0:02:04.4]} 24... dxe5 {[%clk
0:01:09.4]} 25. Nxe5 {[%clk 0:02:01.4]} 25... Nxe5 {[%clk 0:01:08.1]} 26. Bxe5
{[%clk 0:02:00.8]} 26... Qc8 {[%clk 0:01:01.9]} 27. c4 {[%clk 0:01:50.7]} 27...
Qb7 {[%clk 0:00:49.8]} 28. Qc3 {[%clk 0:01:50.8]} 28... Ne8 {[%clk 0:00:43.3]}
29. Bc2 {[%clk 0:01:39.5]} 29... Bf6 {[%clk 0:00:21.6]} 30. f4 {[%clk
0:01:36.5]} 30... Ra2 {[%clk 0:00:19.9]} 31. b3 {[%clk 0:01:32.9]} 31... Bxe5
{[%clk 0:00:19.6]} 32. fxe5 {[%clk 0:01:33.5]} 32... Qb8 {[%clk 0:00:17.4]} 33.
Ra1 {[%clk 0:01:26]} 33... Rxa1+ {[%clk 0:00:17.5]} 34. Qxa1 {[%clk 0:01:27.5]}
34... Ng7 {[%clk 0:00:18.2]} 35. Qc3 {[%clk 0:01:17]} 35... h5 {[%clk
0:00:18.7]} 36. Qe3 {[%clk 0:01:18.4]} 36... Ne8 {[%clk 0:00:16.9]} 37. Kf2
{[%clk 0:01:15.7]} 37... Qb4 {[%clk 0:00:17.5]} 38. Ke2 {[%clk 0:01:13.6]} 38...
Qb6 {[%clk 0:00:17.5]} 39. e6 {[%clk 0:01:10.3]} 39... fxe6 {[%clk 0:00:16.2]}
40. Bxg6 {[%clk 0:01:10.6]} 40... Ng7 {[%clk 0:00:15.4]} 41. Qh6 {[%clk
0:01:10.3]} 41... Qxb3 {[%clk 0:00:12.5]} 42. Qh7+ {[%clk 0:01:10.9]} 42... Kf8
{[%clk 0:00:13.7]} 43. Qh8# {[%clk 0:01:12.4]} 1-0

[Event "*** Titled Tuesday Blitz"]
[Site "Chess.com"]
[Date "2018.05.01"]
[Round "3"]
[White "Margency"]
[Black "MartinMatthiesen"]
[Result "1-0"]
[WhiteElo "2537"]
[BlackElo "2360"]
[TimeControl "180+2"]
[EndTime "13:39:08 PDT"]
[Termination "Margency won by resignation"]

1. e4 {[%clk 0:03:01.9]} 1... e5 {[%clk 0:02:59.9]} 2. Nf3 {[%clk 0:03:02.2]}
2... Nc6 {[%clk 0:02:57.6]} 3. Bc4 {[%clk 0:03:01.8]} 3... Bc5 {[%clk
0:02:56.9]} 4. O-O {[%clk 0:03:02.1]} 4... Nf6 {[%clk 0:02:56.8]} 5. d3 {[%clk
0:03:02.8]} 5... d6 {[%clk 0:02:56.9]} 6. c3 {[%clk 0:03:02.7]} 6... a6 {[%clk
0:02:55.2]} 7. Bb3 {[%clk 0:03:02.8]} 7... Ba7 {[%clk 0:02:46.4]} 8. Nbd2 {[%clk
0:02:59.1]} 8... O-O {[%clk 0:02:44.6]} 9. h3 {[%clk 0:02:59.4]} 9... Re8 {[%clk
0:02:42.1]} 10. Re1 {[%clk 0:02:59.5]} 10... Be6 {[%clk 0:02:40.9]} 11. Ng5
{[%clk 0:02:55.4]} 11... Bxb3 {[%clk 0:02:30.4]} 12. Qxb3 {[%clk 0:02:56.1]}
12... Qd7 {[%clk 0:02:31.1]} 13. a4 {[%clk 0:02:46.5]} 13... h6 {[%clk
0:02:18.5]} 14. Ngf3 {[%clk 0:02:46.8]} 14... d5 {[%clk 0:02:14.8]} 15. exd5
{[%clk 0:02:36.1]} 15... Nxd5 {[%clk 0:02:14.5]} 16. Nc4 {[%clk 0:02:35.8]}
16... f6 {[%clk 0:02:07.8]} 17. Be3 {[%clk 0:02:31.4]} 17... Kh8 {[%clk
0:01:51.2]} 18. Bxa7 {[%clk 0:02:31]} 18... Rxa7 {[%clk 0:01:52.1]} 19. Rad1
{[%clk 0:02:30.7]} 19... Raa8 {[%clk 0:01:50.3]} 20. a5 {[%clk 0:02:21.5]} 20...
Rab8 {[%clk 0:01:47.3]} 21. Qc2 {[%clk 0:02:09.1]} 21... b5 {[%clk 0:01:41.2]}
22. axb6 {[%clk 0:02:09.2]} 22... cxb6 {[%clk 0:01:42.3]} 23. d4 {[%clk
0:02:06.8]} 23... exd4 {[%clk 0:01:34.6]} 24. Rxe8+ {[%clk 0:02:06.7]} 24...
Rxe8 {[%clk 0:01:35.1]} 25. Nxd4 {[%clk 0:02:06.5]} 25... Nxd4 {[%clk
0:01:26.4]} 26. Rxd4 {[%clk 0:02:06.9]} 26... Re1+ {[%clk 0:01:17.3]} 27. Kh2
{[%clk 0:02:07.1]} 27... Qc7+ {[%clk 0:01:14.9]} 28. g3 {[%clk 0:02:07.7]} 28...
Qc6 {[%clk 0:00:54.2]} 29. Ne3 {[%clk 0:01:39.3]} 29... Ne7 {[%clk 0:00:37.8]}
30. Rd8+ {[%clk 0:01:28.7]} 30... Ng8 {[%clk 0:00:38.7]} 31. Nd5 {[%clk
0:01:25.5]} 31... Re8 {[%clk 0:00:36.3]} 32. Rxe8 {[%clk 0:01:20.7]} 32... Qxe8
{[%clk 0:00:37.2]} 33. Nxb6 {[%clk 0:01:22.2]} 33... Qe1 {[%clk 0:00:33.7]} 34.
Nd5 {[%clk 0:01:19.9]} 34... h5 {[%clk 0:00:31.1]} 35. h4 {[%clk 0:01:20.6]}
35... Nh6 {[%clk 0:00:31]} 36. Ne3 {[%clk 0:01:20.8]} 36... Ng4+ {[%clk
0:00:22.3]} 37. Nxg4 {[%clk 0:01:21.5]} 37... hxg4 {[%clk 0:00:24.2]} 38. c4
{[%clk 0:01:22.3]} 38... Kg8 {[%clk 0:00:23.2]} 39. c5 {[%clk 0:01:23.2]} 39...
Qe7 {[%clk 0:00:22.7]} 40. c6 {[%clk 0:01:21.9]} 40... Qc7 {[%clk 0:00:23.6]}
41. Qc4+ {[%clk 0:01:22.6]} 41... Kf8 {[%clk 0:00:24]} 42. Qxa6 {[%clk
0:01:23.5]} 42... Qe5 {[%clk 0:00:14.3]} 43. Qc8+ {[%clk 0:01:18.2]} 43... Ke7
{[%clk 0:00:14.9]} 44. Qd7+ {[%clk 0:01:19]} 44... Kf8 {[%clk 0:00:15.7]} 45. c7
{[%clk 0:01:19.6]} 1-0

[Event "*** Titled Tuesday Blitz"]
[Site "Chess.com"]
[Date "2018.05.01"]
[Round "3"]
[White "FearNoEvil12"]
[Black "arna"]
[Result "0-1"]
[WhiteElo "1956"]
[BlackElo "2121"]
[TimeControl "180+2"]
[EndTime "13:39:16 PDT"]
[Termination "arna won on time"]

1. e4 {[%clk 0:03:01.9]} 1... c5 {[%clk 0:02:51]} 2. Nc3 {[%clk 0:03:02.7]} 2...
Nc6 {[%clk 0:02:49.1]} 3. f4 {[%clk 0:03:04.1]} 3... a6 {[%clk 0:02:49.1]} 4. a4
{[%clk 0:03:02.9]} 4... e6 {[%clk 0:02:50.1]} 5. Nf3 {[%clk 0:03:04.2]} 5... d5
{[%clk 0:02:50.8]} 6. d3 {[%clk 0:03:04.9]} 6... Nf6 {[%clk 0:02:50.9]} 7. Qe2
{[%clk 0:03:03.5]} 7... Be7 {[%clk 0:02:39.6]} 8. g3 {[%clk 0:03:02.4]} 8... b6
{[%clk 0:02:09.8]} 9. Bg2 {[%clk 0:03:02.5]} 9... Bb7 {[%clk 0:02:03.5]} 10. O-O
{[%clk 0:03:02.3]} 10... O-O {[%clk 0:02:03.3]} 11. h3 {[%clk 0:03:00.9]} 11...
Nd4 {[%clk 0:02:01.6]} 12. Qf2 {[%clk 0:02:53.5]} 12... dxe4 {[%clk 0:01:59.2]}
13. Nxd4 {[%clk 0:02:52.3]} 13... cxd4 {[%clk 0:01:58.5]} 14. Nxe4 {[%clk
0:02:53.2]} 14... Qc7 {[%clk 0:01:40.6]} 15. Kh2 {[%clk 0:02:39.8]} 15... Rfd8
{[%clk 0:01:34.3]} 16. f5 {[%clk 0:02:19.7]} 16... Nxe4 {[%clk 0:00:56.9]} 17.
dxe4 {[%clk 0:02:17.5]} 17... e5 {[%clk 0:00:57.4]} 18. Qe2 {[%clk 0:01:27.9]}
18... f6 {[%clk 0:00:53]} 19. Rf2 {[%clk 0:01:07]} 19... Rac8 {[%clk 0:00:53.6]}
20. b3 {[%clk 0:01:00.1]} 20... Qc3 {[%clk 0:00:50.2]} 21. Rb1 {[%clk
0:00:57.9]} 21... d3 {[%clk 0:00:40]} 22. cxd3 {[%clk 0:00:56.9]} 22... Qxd3
{[%clk 0:00:41.1]} 23. Qxd3 {[%clk 0:00:48.6]} 23... Rxd3 {[%clk 0:00:43]} 24.
Re2 {[%clk 0:00:15.8]} 24... Rcc3 {[%clk 0:00:26.4]} 25. Bd2 {[%clk 0:00:06.7]}
25... Rc2 {[%clk 0:00:09.3]} 26. Rd1 {[%clk 0:00:06.5]} 26... Rxb3 {[%clk
0:00:05]} 27. Re3 {[%clk 0:00:04.1]} 27... Rxd2 {[%clk 0:00:03.7]} 0-1

[Event "*** Titled Tuesday Blitz"]
[Site "Chess.com"]
[Date "2018.05.01"]
[Round "3"]
[White "PrinceCharming92"]
[Black "schoolmeester"]
[Result "0-1"]
[WhiteElo "2454"]
[BlackElo "2713"]
[TimeControl "180+2"]
[EndTime "13:39:17 PDT"]
[Termination "schoolmeester won by resignation"]

1. e4 {[%clk 0:03:00.1]} 1... Nc6 {[%clk 0:02:57.6]} 2. Nf3 {[%clk 0:02:58.8]}
2... d6 {[%clk 0:02:56.6]} 3. Nc3 {[%clk 0:02:52.3]} 3... Nf6 {[%clk 0:02:52.3]}
4. Bc4 {[%clk 0:02:51.5]} 4... g6 {[%clk 0:02:45.8]} 5. O-O {[%clk 0:02:50.9]}
5... Bg7 {[%clk 0:02:44.9]} 6. d3 {[%clk 0:02:51.5]} 6... Na5 {[%clk 0:02:34.2]}
7. Bb3 {[%clk 0:02:48.1]} 7... Nxb3 {[%clk 0:02:30.1]} 8. axb3 {[%clk 0:02:50]}
8... e5 {[%clk 0:02:25.2]} 9. Bg5 {[%clk 0:02:45.9]} 9... h6 {[%clk 0:02:22]}
10. Be3 {[%clk 0:02:36.8]} 10... Ng4 {[%clk 0:02:05.2]} 11. Bd2 {[%clk
0:02:27.3]} 11... O-O {[%clk 0:02:03]} 12. h3 {[%clk 0:02:24.8]} 12... Nf6
{[%clk 0:02:02.4]} 13. Nh2 {[%clk 0:02:25.3]} 13... d5 {[%clk 0:01:59]} 14. exd5
{[%clk 0:01:56.8]} 14... Nxd5 {[%clk 0:01:58.4]} 15. Re1 {[%clk 0:01:53.8]}
15... b6 {[%clk 0:01:44.1]} 16. Ng4 {[%clk 0:01:41.8]} 16... Bxg4 {[%clk
0:01:15.9]} 17. Qxg4 {[%clk 0:01:40.3]} 17... c5 {[%clk 0:01:14.8]} 18. Qc4
{[%clk 0:01:28.6]} 18... Nc7 {[%clk 0:01:11.1]} 19. Ne4 {[%clk 0:01:07.8]} 19...
a5 {[%clk 0:01:05.8]} 20. Bc3 {[%clk 0:01:02.8]} 20... Re8 {[%clk 0:00:55.2]}
21. Nd2 {[%clk 0:00:51.5]} 21... Qd6 {[%clk 0:00:41.6]} 22. Re2 {[%clk
0:00:38.4]} 22... Re7 {[%clk 0:00:21.3]} 23. Rae1 {[%clk 0:00:35.2]} 23... Rae8
{[%clk 0:00:22]} 24. Qh4 {[%clk 0:00:35.7]} 24... f6 {[%clk 0:00:18.2]} 25. Qg4
{[%clk 0:00:29.6]} 25... Kh7 {[%clk 0:00:18.8]} 26. Ne4 {[%clk 0:00:27.6]} 26...
Qc6 {[%clk 0:00:19.7]} 27. Ng3 {[%clk 0:00:26.2]} 27... f5 {[%clk 0:00:19.5]}
28. Qh4 {[%clk 0:00:21.4]} 28... Bf6 {[%clk 0:00:17.9]} 29. Qc4 {[%clk
0:00:18.1]} 29... b5 {[%clk 0:00:18.5]} 30. Rxe5 {[%clk 0:00:11.9]} 30... bxc4
{[%clk 0:00:16.8]} 31. Rxe7+ {[%clk 0:00:12]} 31... Rxe7 {[%clk 0:00:17.8]} 32.
Rxe7+ {[%clk 0:00:12.3]} 32... Bxe7 {[%clk 0:00:18.5]} 0-1

[Event "*** Titled Tuesday Blitz"]
[Site "Chess.com"]
[Date "2018.05.01"]
[Round "3"]
[White "akretchetov"]
[Black "Kangoroo3000"]
[Result "0-1"]
[WhiteElo "2223"]
[BlackElo "2424"]
[TimeControl "180+2"]
[EndTime "13:39:17 PDT"]
[Termination "Kangoroo3000 won by resignation"]

1. Nf3 {[%clk 0:03:01.9]} 1... d5 {[%clk 0:02:53]} 2. d4 {[%clk 0:03:01.3]} 2...
c5 {[%clk 0:02:52]} 3. dxc5 {[%clk 0:02:58.4]} 3... e6 {[%clk 0:02:52]} 4. c4
{[%clk 0:02:59.3]} 4... Bxc5 {[%clk 0:02:51.4]} 5. cxd5 {[%clk 0:02:59.1]} 5...
exd5 {[%clk 0:02:53.3]} 6. Nc3 {[%clk 0:02:49.7]} 6... Nf6 {[%clk 0:02:53.5]} 7.
e3 {[%clk 0:02:45.6]} 7... O-O {[%clk 0:02:52.4]} 8. Be2 {[%clk 0:02:46.5]} 8...
Nc6 {[%clk 0:02:52.9]} 9. O-O {[%clk 0:02:46.3]} 9... d4 {[%clk 0:02:42.1]} 10.
Na4 {[%clk 0:02:46.4]} 10... b6 {[%clk 0:01:49.1]} 11. Nxc5 {[%clk 0:02:46.6]}
11... bxc5 {[%clk 0:01:51]} 12. exd4 {[%clk 0:02:39.9]} 12... cxd4 {[%clk
0:01:49.3]} 13. Bg5 {[%clk 0:02:37]} 13... Bf5 {[%clk 0:01:43.6]} 14. Bb5 {[%clk
0:02:28]} 14... Be4 {[%clk 0:01:39.6]} 15. Bxc6 {[%clk 0:02:18.7]} 15... Bxc6
{[%clk 0:01:41.5]} 16. Nxd4 {[%clk 0:02:18.7]} 16... Bd5 {[%clk 0:01:40.4]} 17.
Nf5 {[%clk 0:02:14.9]} 17... Be4 {[%clk 0:01:23.6]} 18. Nd6 {[%clk 0:02:07.6]}
18... Bg6 {[%clk 0:01:23.1]} 19. Qd4 {[%clk 0:02:06.9]} 19... Rb8 {[%clk
0:01:16.7]} 20. b3 {[%clk 0:02:05.9]} 20... Rb6 {[%clk 0:01:12.6]} 21. Rad1
{[%clk 0:02:02]} 21... h6 {[%clk 0:00:47.6]} 22. Bh4 {[%clk 0:01:59.8]} 22...
Qd7 {[%clk 0:00:38.7]} 23. Bxf6 {[%clk 0:01:47.8]} 23... gxf6 {[%clk 0:00:40.6]}
24. Nc4 {[%clk 0:01:47.7]} 24... Qxd4 {[%clk 0:00:39.4]} 25. Rxd4 {[%clk
0:01:48.8]} 25... Ra6 {[%clk 0:00:40.7]} 26. Rd2 {[%clk 0:01:47.3]} 26... Re8
{[%clk 0:00:41.6]} 27. f3 {[%clk 0:01:41.5]} 27... Kg7 {[%clk 0:00:41.4]} 28.
Kf2 {[%clk 0:01:42.2]} 28... h5 {[%clk 0:00:36.8]} 29. h4 {[%clk 0:01:42.7]}
29... Rc8 {[%clk 0:00:35.7]} 30. Re1 {[%clk 0:01:40.1]} 30... Bf5 {[%clk
0:00:36.7]} 31. Re7 {[%clk 0:01:37.7]} 31... Be6 {[%clk 0:00:36.1]} 32. Ne3
{[%clk 0:01:28.1]} 32... Rc1 {[%clk 0:00:35.8]} 33. f4 {[%clk 0:01:17.7]} 33...
f5 {[%clk 0:00:32.9]} 34. Rb7 {[%clk 0:00:59.8]} 34... Ra1 {[%clk 0:00:33.5]}
35. a4 {[%clk 0:00:59.4]} 35... Rb1 {[%clk 0:00:34.6]} 36. Rd3 {[%clk
0:00:52.6]} 36... Rxa4 {[%clk 0:00:33]} 37. Rxf7+ {[%clk 0:00:50.7]} 37... Kxf7
{[%clk 0:00:34.6]} 38. bxa4 {[%clk 0:00:51.8]} 38... Rb4 {[%clk 0:00:36.1]} 39.
Ra3 {[%clk 0:00:48.6]} 39... Rxf4+ {[%clk 0:00:36.7]} 40. Ke2 {[%clk 0:00:48.6]}
40... Re4 {[%clk 0:00:37]} 41. Kf3 {[%clk 0:00:46.4]} 41... Rxh4 {[%clk
0:00:37]} 42. g3 {[%clk 0:00:47.7]} 42... Rb4 {[%clk 0:00:36.9]} 43. Ng2 {[%clk
0:00:48.2]} 43... Bd7 {[%clk 0:00:37.2]} 44. a5 {[%clk 0:00:49.1]} 44... Bc6+
{[%clk 0:00:35.8]} 0-1